bitfinex/quotes_BTCUSD_20230831
["timestamp","ask_amount","ask_price","bid_price","bid_amount"]
[1693443777781,4.23835042,27234.0,27233.0,0.023]
[1693443777953,4.23895042,27234.0,27233.0,0.023]
[1693443778164,4.23721042,27234.0,27233.0,0.023]
[1693443778358,3.88705781,27234.0,27227.0,0.08810858]
[1693443778562,0.075,27228.0,27227.0,0.08810858]
[1693443779875,0.076,27228.0,27227.0,0.23027146]
[1693443781474,0.091,27228.0,27227.0,0.23027146]
[1693443781987,0.091,27228.0,27227.0,0.57642083]
[1693443783242,0.091,27228.0,27227.0,0.752638]
[1693443783441,0.10942593,27228.0,27227.0,0.752638]
[1693443784179,0.10942593,27228.0,27227.0,0.62047512]
[1693443786134,1.4886467,27229.0,27227.0,0.84074659]
[1693443786385,1.4886467,27229.0,27228.0,0.56596607]
[1693443786590,1.5636467,27229.0,27228.0,0.56596607]
[1693443787179,1.5636467,27229.0,27228.0,0.74218324]
[1693443787381,1.5636467,27229.0,27228.0,0.56596607]
[1693443787907,1.5656467,27229.0,27228.0,0.56596607]
[1693443788320,1.5636467,27229.0,27228.0,0.13170812]
[1693443788528,1.5656467,27229.0,27228.0,0.56596607]
[1693443789184,1.5656467,27229.0,27228.0,0.13170812]
[1693443789386,1.5656467,27229.0,27228.0,0.56596607]
[1693443789599,2.25002932,27229.0,27228.0,0.0877696]
[1693443789811,2.98455032,27229.0,27228.0,0.0877696]
[1693443790069,2.98455032,27229.0,27228.0,0.0827696]
[1693443790280,3.71907432,27229.0,27228.0,0.0827696]
[1693443792159,3.71907432,27229.0,27228.0,0.21447772]
[1693443792356,3.71907432,27229.0,27228.0,0.64876597]
[1693443793154,3.71907432,27229.0,27228.0,0.56599637]
[1693443793917,3.73594828,27229.0,27228.0,0.56599637]
[1693443795149,3.73594828,27229.0,27228.0,0.73721354]
[1693443796206,3.73594828,27229.0,27228.0,0.61050542]
[1693443797891,0.47956777,27229.0,27228.0,0.61050542]
[1693443798095,0.47956777,27229.0,27228.0,0.83077689]
[1693443798722,0.47956777,27229.0,27228.0,0.65455972]
[1693443799364,1.94858777,27229.0,27228.0,0.65455972]
[1693443800110,2.24446133,27229.0,27228.0,0.65455972]
[1693443800750,2.24446133,27229.0,27228.0,0.43428825]
[1693443801099,2.24446133,27229.0,27227.0,0.43428825]
[1693443801527,2.40416133,27229.0,27227.0,0.43428825]
[1693443802697,2.40216133,27229.0,27227.0,0.43428825]
[1693443803123,0.0196147,27228.0,27227.0,0.43428825]
[1693443803323,0.69530761,27228.0,27227.0,0.43428825]
[1693443803543,0.71217869,27228.0,27227.0,0.43428825]
[1693443804194,0.71217869,27228.0,27227.0,0.69861401]
[1693443804419,0.71217869,27228.0,27227.0,0.43428825]
[1693443804602,2.7917723,27228.0,27227.0,0.43428825]
[1693443804844,2.7927723,27228.0,27227.0,0.70961401]
[1693443805016,2.7927723,27228.0,27227.0,0.44528825]
[1693443805267,2.7927723,27228.0,27227.0,0.70961401]
[1693443805805,2.7927723,27228.0,27227.0,0.43428825]
[1693443805806,2.7917723,27228.0,27227.0,0.43428825]
[1693443807359,2.7937723,27228.0,27227.0,0.43428825]
[1693443807972,2.7937723,27228.0,27227.0,0.69861401]
[1693443808146,2.7917723,27228.0,27227.0,0.43428825]
[1693443808377,2.7927723,27228.0,27227.0,0.44528825]
[1693443808754,2.7917723,27228.0,27227.0,0.69861401]
[1693443808988,2.7937723,27228.0,27227.0,0.69861401]
[1693443809887,1.8147948,27228.0,27227.0,0.69861401]
[1693443810619,2.5493318,27228.0,27227.0,0.69861401]
[1693443811428,2.86703179,27228.0,27227.0,0.43428825]
[1693443812231,2.5493318,27228.0,27227.0,0.43428825]
[1693443812572,2.5493318,27228.0,27227.0,0.65408146]
[1693443812573,3.3588688,27228.0,27227.0,0.65408146]
[1693443812774,3.3588688,27228.0,27227.0,0.82992152]
[1693443812979,3.3588688,27228.0,27227.0,0.39563327]
[1693443813181,3.3588688,27228.0,27227.0,0.65408146]
[1693443813409,3.3588688,27228.0,27227.0,0.13189344]
[1693443813810,3.3588688,27228.0,27227.0,0.56618169]
[1693443814032,3.3588688,27228.0,27227.0,0.30775136]
[1693443814580,3.62278158,27228.0,27227.0,0.30775136]
[1693443814780,3.3588688,27228.0,27227.0,0.30775136]
[1693443814980,3.3588688,27228.0,27227.0,0.13189344]
[1693443816213,3.7442688,27228.0,27227.0,0.13189344]
[1693443816391,3.97907561,27228.0,27227.0,0.13189344]
[1693443816612,3.99907561,27228.0,27227.0,0.13189344]
[1693443816795,3.59367561,27228.0,27227.0,0.56618169]
[1693443817015,3.59367561,27228.0,27227.0,0.7421164]
[1693443817173,3.59367561,27228.0,27227.0,0.30782815]
[1693443817368,3.59367561,27228.0,27227.0,0.61014617]
[1693443818002,3.59367561,27228.0,27227.0,0.17585792]
[1693443818332,3.3588688,27228.0,27227.0,0.17585792]
[1693443819811,3.3588688,27228.0,27227.0,0.30788527]
[1693443820453,3.3588688,27228.0,27227.0,0.5663156]
[1693443820860,3.60903951,27228.0,27227.0,0.22006417]
[1693443821058,3.3588688,27228.0,27227.0,0.13202735]
[1693443821262,3.60329428,27228.0,27227.0,0.13202735]
[1693443821461,3.67600213,27228.0,27227.0,0.13202735]
[1693443821850,3.67600213,27228.0,27227.0,0.08805606]
[1693443822065,3.3588688,27228.0,27227.0,0.08805606]
[1693443822277,3.63052072,27228.0,27227.0,0.08805606]
[1693443823360,3.3588688,27228.0,27227.0,0.08805606]
[1693443823495,3.5997579,27228.0,27227.0,0.08805606]
[1693443823697,3.5997579,27228.0,27226.0,0.22008341]
[1693443823899,0.44107911,27227.0,27226.0,0.22008341]
[1693443824128,3.39919996,27227.0,27226.0,0.22008341]
[1693443825075,3.39919996,27227.0,27226.0,0.09005606]
[1693443825076,3.42719996,27227.0,27226.0,0.09005606]
[1693443825231,3.57427496,27227.0,27226.0,0.22208341]
[1693443825837,3.57427496,27227.0,27226.0,0.09005606]
[1693443826239,3.87952641,27227.0,27226.0,0.09005606]
[1693443827277,3.87952641,27227.0,27226.0,0.002]
[1693443829345,3.57427496,27227.0,27226.0,0.002]
[1693443829577,3.85674041,27227.0,27226.0,0.002]
[1693443829761,3.57427496,27227.0,27226.0,0.002]
[1693443829954,3.86614499,27227.0,27226.0,0.002]
[1693443830130,3.57427496,27227.0,27226.0,0.002]
[1693443830473,3.83940956,27227.0,27226.0,0.002]
[1693443835820,3.10484556,27227.0,27226.0,0.002]
[1693443838182,3.97967496,27227.0,27226.0,0.002]
[1693443838783,4.14157496,27227.0,27226.0,0.002]
[1693443850288,3.85699801,27227.0,27226.0,0.002]
[1693443850691,2.38787001,27227.0,27226.0,0.002]
[1693443851620,3.12243401,27227.0,27226.0,0.002]
[1693443855669,2.38787001,27227.0,27226.0,0.002]
[1693443856374,3.12243401,27227.0,27226.0,0.002]
[1693443860477,0.19493985,27227.0,27226.0,1.471182]
[1693443860686,0.19493985,27227.0,27226.0,2.205773]
[1693443861107,0.19493985,27227.0,27226.0,2.940364]
[1693443865135,0.19493985,27227.0,27226.0,2.940364]
[1693443868068,0.19493985,27227.0,27226.0,2.205773]
[1693443871492,2.68379274,27227.0,27226.0,0.002]
[1693443871739,3.04987185,27227.0,27226.0,0.002]
[1693443872147,0.19493985,27227.0,27226.0,0.736591]
[1693443872782,0.19493985,27227.0,27226.0,2.205773]
[1693443873531,0.19493985,27227.0,27226.0,2.280773]
[1693443873734,0.19493985,27227.0,27226.0,3.10354449]
[1693443873934,0.175075,27227.0,27226.0,3.015364]
[1693443874105,0.175075,27227.0,27226.0,3.10354449]
[1693443874312,0.028,27227.0,27226.0,3.10354449]
[1693443875111,0.028,27227.0,27226.0,3.6296236]
[1693443875297,0.028,27227.0,27226.0,4.19605532]
[1693443876135,0.028,27227.0,27226.0,4.19605312]
[1693443876300,0.028,27227.0,27226.0,4.19603623]
[1693443876507,0.147022,27230.0,27226.0,4.1059715]
[1693443876706,0.147022,27230.0,27229.0,0.075]
[1693443880587,0.184022,27230.0,27229.0,3.01604]
[1693443881106,0.037,27230.0,27229.0,3.01604]
[1693443884041,0.037,27230.0,27229.0,3.01304]
[1693443884249,0.1589,27235.0,27229.0,3.01304]
[1693443884385,0.147012,27232.0,27230.0,0.04003411]
[1693443884593,0.147012,27232.0,27231.0,2.937828]
[1693443885193,0.147012,27232.0,27231.0,3.012828]
[1693443886513,0.147012,27232.0,27231.0,3.014828]
[1693443886719,0.176012,27232.0,27231.0,3.014828]
[1693443886919,0.147012,27232.0,27231.0,3.012828]
[1693443887163,0.150012,27232.0,27231.0,3.012828]
[1693443892255,0.003,27232.0,27231.0,3.012828]
[1693443892919,0.1589,27235.0,27231.0,3.012828]
[1693443893120,0.1589,27235.0,27234.0,0.075]
[1693443893324,0.1589,27235.0,27234.0,3.012504]
[1693443893527,0.305903,27235.0,27234.0,3.012504]
[1693443894489,0.321903,27235.0,27234.0,3.013504]
[1693443895450,0.163003,27235.0,27234.0,3.37958311]
[1693443895651,0.016,27235.0,27234.0,3.53958311]
[1693443896224,0.016,27235.0,27234.0,4.10600797]
[1693443896620,0.146976,27238.0,27235.0,0.12]
[1693443896843,0.146976,27238.0,27236.0,3.012288]
[1693443899362,0.162976,27238.0,27236.0,3.013288]
[1693443901399,0.162976,27238.0,27236.0,3.74761]
[1693443904566,0.162976,27238.0,27236.0,3.83548832]
[1693443910567,0.46084554,27238.0,27236.0,3.02616632]
[1693443910966,0.162976,27238.0,27236.0,3.02616632]
[1693443913957,0.162976,27238.0,27236.0,2.938288]
[1693443916910,0.157976,27238.0,27236.0,2.938288]
[1693443918296,0.157976,27238.0,27236.0,3.02616632]
[1693443919282,0.38725998,27238.0,27236.0,2.938288]
[1693443919482,0.22588138,27237.0,27236.0,2.203966]
[1693443921098,0.22588138,27237.0,27236.0,2.202966]
[1693443921506,0.22888138,27237.0,27236.0,2.202966]
[1693443927619,0.22888138,27237.0,27234.0,1.468717]
[1693443927620,1.79182949,27237.0,27234.0,1.468717]
[1693443927828,2.52612449,27237.0,27233.0,1.68877511]
[1693443928003,0.1599,27236.0,27233.0,1.55678044]
[1693443928206,0.734349,27235.0,27233.0,1.55678044]
[1693443928406,0.734349,27235.0,27233.0,1.468784]
[1693443928909,0.894249,27235.0,27233.0,1.468784]
[1693443929158,0.894249,27235.0,27233.0,0.744392]
[1693443929365,0.894249,27235.0,27233.0,0.734392]
[1693443929568,0.894249,27235.0,27233.0,0.023]
[1693443929569,0.075,27234.0,27233.0,0.023]
[1693443929771,1.05934494,27234.0,27233.0,0.023]
[1693443929970,1.79372094,27234.0,27233.0,0.023]
[1693443930148,2.52809694,27234.0,27233.0,0.023]
[1693443930757,2.52809694,27234.0,27231.0,1.55688044]
[1693443930985,0.075,27233.0,27231.0,1.55688044]
[1693443931597,0.973709,27233.0,27231.0,1.55688044]
[1693443931983,0.075,27232.0,27230.0,1.55694244]
[1693443932138,2.07419711,27233.0,27231.0,0.734451]
[1693443932343,0.31897308,27232.0,27231.0,0.744451]
[1693443932570,0.31897308,27232.0,27231.0,0.75581859]
[1693443933729,0.31897308,27232.0,27231.0,0.74581859]
[1693443933933,0.31897308,27232.0,27231.0,1.48027559]
[1693443934194,0.32097308,27232.0,27231.0,1.50327559]
[1693443937988,0.32097308,27232.0,27231.0,2.23773259]
[1693443938205,0.002,27232.0,27231.0,2.23773259]
[1693443940485,0.002,27232.0,27231.0,2.97218959]
[1693443941506,0.002,27232.0,27231.0,2.23773259]
[1693443950842,0.31917081,27232.0,27231.0,2.23773259]
[1693443960886,0.31917081,27232.0,27231.0,1.50327559]
[1693443963609,1.83693911,27232.0,27231.0,0.03436759]
[1693443963802,3.38079911,27232.0,27231.0,0.03436759]
[1693443964431,3.45579911,27232.0,27231.0,0.03436759]
[1693443964632,3.45579911,27232.0,27231.0,0.023]
[1693443964852,3.45379911,27232.0,27225.0,1.55721344]
[1693443965009,0.075,27228.0,27225.0,1.55721344]
[1693443965209,1.32200552,27228.0,27225.0,2.29182144]
[1693443965457,1.17562211,27228.0,27226.0,0.01101448]
[1693443966403,0.24128437,27227.0,27226.0,0.01101448]
[1693443966723,0.24128437,27227.0,27226.0,0.74560548]
[1693443967909,0.24228437,27227.0,27226.0,0.75660548]
[1693443968889,0.38933937,27227.0,27226.0,0.75660548]
[1693443973912,0.38933937,27227.0,27226.0,0.84467751]
[1693443976533,0.38933937,27227.0,27226.0,0.11008651]
[1693443977600,1.12390337,27227.0,27226.0,0.11008651]
[1693443978390,1.12390337,27227.0,27226.0,0.02201448]
[1693443980096,3.03411048,27227.0,27226.0,0.02201448]
[1693443980300,3.07689758,27227.0,27226.0,0.02201448]
[1693443981487,2.79282611,27227.0,27226.0,0.02201448]
[1693443982090,3.08601112,27227.0,27226.0,0.02201448]
[1693443982318,3.52739011,27227.0,27226.0,0.02201448]
[1693443983782,3.84610296,27227.0,27226.0,0.02201448]
[1693443993927,3.11153896,27227.0,27226.0,0.02201448]
[1693444003963,2.37697496,27227.0,27226.0,0.02201448]
[1693444019127,1.64241096,27227.0,27226.0,0.02201448]
[1693444019344,1.56741096,27227.0,27226.0,0.02201448]
[1693444019977,0.148055,27227.0,27226.0,0.02201448]
[1693444020185,0.148055,27227.0,27226.0,2.96037848]
[1693444023544,0.148055,27227.0,27226.0,2.96037848]
[1693444023846,0.148055,27227.0,27226.0,3.12345051]
[1693444024005,0.148055,27227.0,27226.0,3.25555856]
[1693444024213,0.148055,27227.0,27226.0,3.60176029]
[1693444024618,0.001,27227.0,27226.0,3.59873281]
[1693444025249,0.001,27227.0,27226.0,3.77487687]
[1693444025451,0.001,27227.0,27226.0,3.79487687]
[1693444025654,0.001,27227.0,27226.0,3.68276882]
[1693444025863,0.001,27227.0,27226.0,3.81497615]
[1693444026779,0.001,27227.0,27226.0,3.63883209]
[1693444028789,0.001,27227.0,27226.0,3.29266081]
[1693444028924,0.001,27227.0,27226.0,3.72693033]
[1693444029340,0.001,27227.0,27226.0,3.29266081]
[1693444030887,0.001,27227.0,27226.0,3.16045348]
[1693444034860,0.001,27227.0,27226.0,3.19037005]
[1693444035983,0.001,27227.0,27226.0,3.18537005]
[1693444036346,0.001,27227.0,27226.0,3.15545348]
[1693444036722,0.001,27227.0,27226.0,3.067351]
[1693444037501,0.001,27227.0,27226.0,3.047351]
[1693444040633,0.001,27227.0,27226.0,3.13545348]
[1693444042203,0.001,27227.0,27226.0,3.047351]
[1693444042635,0.001,27227.0,27226.0,3.13545348]
[1693444043580,0.001,27227.0,27226.0,3.047351]
[1693444051755,0.001,27227.0,27226.0,3.047351]
[1693444055414,0.001,27227.0,27226.0,2.972351]
[1693444061102,0.001,27227.0,27226.0,0.013987]
[1693444061103,0.26852795,27227.0,27226.0,0.013987]
[1693444061307,0.26852795,27227.0,27226.0,0.748578]
[1693444065269,0.26852795,27227.0,27226.0,0.013987]
[1693444068045,1.73765595,27227.0,27226.0,0.013987]
[1693444070543,1.73757465,27227.0,27226.0,0.013987]
[1693444078098,3.64778176,27227.0,27226.0,0.013987]
[1693444080754,1.44408976,27227.0,27226.0,0.013987]
[1693444080931,0.63452576,27227.0,27226.0,0.013987]
[1693444082573,0.0009187,27227.0,27226.0,2.21776]
[1693444082790,0.0009187,27227.0,27226.0,2.952351]
[1693444083654,0.0009187,27227.0,27226.0,3.027351]
[1693444083863,0.0009187,27227.0,27226.0,3.11543821]
[1693444086837,0.0009187,27227.0,27226.0,3.04043821]
[1693444097607,0.0009187,27227.0,27226.0,3.11543821]
[1693444116679,0.0009187,27227.0,27226.0,3.50151732]
[1693444116881,0.0009187,27227.0,27226.0,3.9798303]
[1693444119670,0.0009187,27227.0,27226.0,4.15600472]
[1693444121508,0.04909919,27234.0,27226.0,4.19600472]
[1693444121837,0.218,27233.0,27230.0,0.075]
[1693444121946,0.218,27233.0,27231.0,3.67226]
[1693444122182,0.1663,27233.0,27232.0,0.00878945]
[1693444122387,0.1663,27233.0,27232.0,2.21207945]
[1693444122813,0.1663,27233.0,27232.0,2.94650945]
[1693444123592,0.1663,27233.0,27232.0,3.02150945]
[1693444124008,0.1663,27233.0,27232.0,2.94650945]
[1693444124211,0.2033,27233.0,27232.0,2.94950945]
[1693444127492,0.2033,27233.0,27232.0,3.02450945]
[1693444132082,0.037,27233.0,27232.0,3.39058856]
[1693444132998,0.218,27235.0,27232.0,3.38758856]
[1693444133298,0.364991,27235.0,27234.0,3.74688]
[1693444133705,0.04944165,27238.0,27234.0,3.74688]
[1693444133938,0.3799,27237.0,27234.0,3.79566432]
[1693444134143,0.3799,27237.0,27234.0,3.75563021]
[1693444134768,0.032,27235.0,27234.0,3.75563021]
[1693444135183,0.032,27235.0,27234.0,2.94625421]
[1693444136156,0.3799,27237.0,27234.0,2.94625421]
[1693444136311,0.4169,27237.0,27234.0,2.94925421]
[1693444136734,0.3799,27237.0,27234.0,2.94625421]
[1693444136974,0.032,27235.0,27234.0,2.94925421]
[1693444137356,0.3799,27237.0,27234.0,2.94625421]
[1693444137555,0.4169,27237.0,27234.0,2.94925421]
[1693444137765,0.3799,27237.0,27234.0,2.94625421]
[1693444139455,0.032,27235.0,27234.0,2.94925421]
[1693444139632,0.3799,27237.0,27234.0,2.94625421]
[1693444139823,0.4169,27237.0,27234.0,2.94925421]
[1693444145843,0.2545,27237.0,27234.0,2.94925421]
[1693444146945,0.037,27237.0,27234.0,2.94925421]
[1693444148540,0.037,27237.0,27235.0,0.075]
[1693444148753,0.037,27237.0,27236.0,2.937288]
[1693444148972,0.037,27237.0,27236.0,2.9467572]
[1693444149736,0.146991,27238.0,27236.0,2.9467572]
[1693444150130,0.037,27237.0,27236.0,2.9497572]
[1693444151715,0.146991,27238.0,27236.0,2.9467572]
[1693444151871,0.146991,27238.0,27236.0,2.9497572]
[1693444152072,0.183991,27238.0,27236.0,2.9497572]
[1693444152296,0.146991,27238.0,27236.0,2.9467572]
[1693444152496,0.037,27237.0,27236.0,2.9497572]
[1693444152964,0.146991,27238.0,27236.0,2.9467572]
[1693444153189,0.183991,27238.0,27236.0,2.9497572]
[1693444153405,0.146991,27238.0,27236.0,2.9467572]
[1693444154864,0.037,27237.0,27236.0,2.9497572]
[1693444155242,0.146991,27238.0,27236.0,2.9467572]
[1693444155473,0.183991,27238.0,27236.0,2.9497572]
[1693444155631,0.146991,27238.0,27236.0,2.9467572]
[1693444156029,0.037,27237.0,27236.0,2.9497572]
[1693444156288,0.146991,27238.0,27236.0,2.9467572]
[1693444156691,0.183991,27238.0,27236.0,2.9497572]
[1693444158490,0.183991,27238.0,27236.0,2.9467572]
[1693444158691,0.146991,27238.0,27236.0,2.9467572]
[1693444158894,0.037,27237.0,27236.0,2.9497572]
[1693444159093,0.146991,27238.0,27236.0,2.9467572]
[1693444159437,0.183991,27238.0,27236.0,2.9497572]
[1693444159963,0.146991,27238.0,27236.0,2.9467572]
[1693444160191,0.037,27237.0,27236.0,2.9497572]
[1693444162037,0.146991,27238.0,27236.0,2.9467572]
[1693444162172,0.183991,27238.0,27236.0,2.9497572]
[1693444162571,0.146991,27238.0,27236.0,2.9467572]
[1693444162768,0.037,27237.0,27236.0,2.9497572]
[1693444163113,0.146991,27238.0,27236.0,2.9467572]
[1693444164079,0.183991,27238.0,27236.0,2.9497572]
[1693444164280,0.183991,27238.0,27236.0,2.2154352]
[1693444164482,0.30521912,27237.0,27236.0,1.4811132]
[1693444165456,0.30521912,27237.0,27236.0,1.4841132]
[1693444165804,0.30521912,27237.0,27236.0,1.4781132]
[1693444166206,0.37521912,27237.0,27236.0,1.4841132]
[1693444167442,0.37083905,27237.0,27236.0,1.4841132]
[1693444183449,0.07,27237.0,27236.0,1.4841132]
[1693444186474,0.36518492,27237.0,27236.0,0.7497912]
[1693444187014,0.36518492,27237.0,27236.0,0.0154692]
[1693444187221,0.36518492,27237.0,27236.0,0.7497912]
[1693444187782,0.36518492,27237.0,27236.0,0.0154692]
[1693444188533,1.09947992,27237.0,27236.0,0.0154692]
[1693444189861,1.17037411,27237.0,27236.0,0.0154692]
[1693444190064,3.44825911,27237.0,27236.0,0.0154692]
[1693444190267,3.44825911,27237.0,27236.0,0.006]
[1693444190268,3.80830043,27237.0,27236.0,0.006]
[1693444190490,3.53598072,27237.0,27236.0,0.006]
[1693444190732,3.53598072,27237.0,27236.0,0.01579632]
[1693444190935,3.64221401,27237.0,27236.0,0.01579632]
[1693444191511,3.81765724,27237.0,27236.0,0.01579632]
[1693444191715,3.64221401,27237.0,27236.0,0.01579632]
[1693444191941,3.57984153,27237.0,27236.0,0.01579632]
[1693444193241,3.57900843,27237.0,27236.0,0.01579632]
[1693444194211,3.82591593,27237.0,27236.0,0.01579632]
[1693444194587,3.78219689,27237.0,27236.0,0.01579632]
[1693444200310,3.53528939,27237.0,27236.0,0.01579632]
[1693444201298,3.53528939,27237.0,27236.0,0.006]
[1693444201987,3.53528939,27237.0,27236.0,0.01579632]
[1693444202187,3.53528939,27237.0,27236.0,0.006]
[1693444203401,3.53528939,27237.0,27236.0,0.01579632]
[1693444203596,3.53528939,27237.0,27236.0,0.006]
[1693444203772,3.66682875,27237.0,27236.0,0.006]
[1693444203975,3.57900843,27237.0,27236.0,0.006]
[1693444204177,3.6668266,27237.0,27236.0,0.006]
[1693444205354,3.79057883,27237.0,27236.0,0.006]
[1693444206200,3.79057883,27237.0,27236.0,0.01582052]
[1693444206482,3.79057883,27237.0,27236.0,0.006]
[1693444207295,3.53524418,27237.0,27236.0,0.006]
[1693444208612,3.77482517,27237.0,27236.0,0.006]
[1693444208818,3.53524418,27237.0,27236.0,0.006]
[1693444210252,3.79179054,27237.0,27236.0,0.006]
[1693444210871,3.53524418,27237.0,27236.0,0.006]
[1693444211077,3.8507866,27237.0,27236.0,0.006]
[1693444211307,3.8519866,27237.0,27236.0,0.006]
[1693444211488,3.8514466,27237.0,27236.0,0.006]
[1693444211626,3.8505466,27237.0,27236.0,0.006]
[1693444211823,4.00058294,27237.0,27236.0,0.006]
[1693444212034,4.00046294,27237.0,27236.0,0.006]
[1693444212243,3.93710294,27237.0,27236.0,0.006]
[1693444214268,3.76165971,27237.0,27236.0,0.006]
[1693444214689,3.93710294,27237.0,27236.0,0.006]
[1693444215250,3.76165971,27237.0,27236.0,0.006]
[1693444221072,3.76165971,27237.0,27236.0,0.01549142]
[1693444224696,3.76171684,27237.0,27236.0,0.01549142]
[1693444226071,3.76171684,27237.0,27236.0,0.006]
[1693444226501,3.76171568,27237.0,27236.0,0.006]
[1693444227076,3.93723354,27237.0,27236.0,0.006]
[1693444227477,3.99909354,27237.0,27236.0,0.006]
[1693444227680,3.93723354,27237.0,27236.0,0.006]
[1693444228708,3.80559515,27237.0,27236.0,0.006]
[1693444228887,3.93725296,27237.0,27236.0,0.006]
[1693444229695,3.80559515,27237.0,27236.0,0.006]
[1693444232336,4.27061515,27237.0,27236.0,0.006]
[1693444232536,5.05277015,27237.0,27236.0,0.006]
[1693444232737,5.05283015,27237.0,27236.0,0.006]
[1693444232961,5.27132748,27237.0,27236.0,0.006]
[1693444233166,5.27114748,27237.0,27236.0,0.006]
[1693444233362,5.05253015,27237.0,27236.0,0.006]
[1693444233569,5.05217015,27237.0,27236.0,0.006]
[1693444233766,5.26796748,27237.0,27236.0,0.006]
[1693444234111,5.26766748,27237.0,27236.0,0.006]
[1693444234286,5.26742748,27237.0,27236.0,0.006]
[1693444234592,5.26724748,27237.0,27236.0,0.006]
[1693444234798,5.09154962,27237.0,27236.0,0.006]
[1693444234997,5.09112962,27237.0,27236.0,0.006]
[1693444235157,5.09100962,27237.0,27236.0,0.006]
[1693444235355,5.09082962,27237.0,27236.0,0.006]
[1693444235583,5.45726873,27237.0,27236.0,0.006]
[1693444236058,5.09040962,27237.0,27236.0,0.006]
[1693444236229,5.09058962,27237.0,27236.0,0.006]
[1693444236431,5.09040962,27237.0,27236.0,0.006]
[1693444236648,5.09004962,27237.0,27236.0,0.006]
[1693444236778,5.08986962,27237.0,27236.0,0.006]
[1693444236986,5.08980962,27237.0,27236.0,0.006]
[1693444237185,5.45558873,27237.0,27236.0,0.006]
[1693444237422,5.5519714,27237.0,27236.0,0.006]
[1693444237619,5.5546714,27237.0,27236.0,0.006]
[1693444237940,5.5539514,27237.0,27236.0,0.006]
[1693444238141,5.5537714,27237.0,27236.0,0.006]
[1693444238344,5.5534114,27237.0,27236.0,0.006]
[1693444238623,5.5514914,27237.0,27236.0,0.006]
[1693444238740,5.5525714,27237.0,27236.0,0.006]
[1693444238944,5.5520314,27237.0,27236.0,0.006]
[1693444239143,5.5519114,27237.0,27236.0,0.006]
[1693444239351,5.5517314,27237.0,27236.0,0.006]
[1693444239556,5.5504114,27237.0,27236.0,0.006]
[1693444240003,5.5472314,27237.0,27236.0,0.006]
[1693444240232,5.5505914,27237.0,27236.0,0.006]
[1693444240431,5.5424314,27237.0,27236.0,0.006]
[1693444240660,5.5451914,27237.0,27236.0,0.006]
[1693444240846,5.17863229,27237.0,27236.0,0.006]
[1693444240991,5.15397229,27237.0,27236.0,0.006]
[1693444241170,5.30933356,27237.0,27236.0,0.006]
[1693444242295,5.08977229,27237.0,27236.0,0.006]
[1693444242499,5.30933176,27237.0,27236.0,0.006]
[1693444242696,5.15481229,27237.0,27236.0,0.006]
[1693444242983,5.15757229,27237.0,27236.0,0.006]
[1693444243136,5.15535229,27237.0,27236.0,0.006]
[1693444243335,5.15541229,27237.0,27236.0,0.006]
[1693444243516,5.15505229,27237.0,27236.0,0.006]
[1693444243716,5.15343229,27237.0,27236.0,0.006]
[1693444243920,5.30934211,27237.0,27236.0,0.006]
[1693444244153,4.48268987,27237.0,27236.0,0.006]
[1693444244355,4.34530876,27237.0,27236.0,0.006]
[1693444244791,4.65466031,27237.0,27236.0,0.006]
[1693444244999,4.65466031,27237.0,27236.0,0.02309804]
[1693444245206,4.43001428,27237.0,27236.0,0.006]
[1693444245404,4.62977942,27237.0,27236.0,0.006]
[1693444245610,4.34531753,27237.0,27236.0,0.006]
[1693444245809,4.16964711,27237.0,27236.0,0.006]
[1693444246006,4.34532429,27237.0,27236.0,0.006]
[1693444246221,4.47888714,27237.0,27236.0,0.006]
[1693444248438,4.47888714,27237.0,27236.0,0.02309727]
[1693444249130,4.47888714,27237.0,27236.0,0.006]
[1693444249547,4.47888714,27237.0,27236.0,0.02286286]
[1693444249548,2.57029714,27237.0,27236.0,0.02286286]
[1693444249715,2.62642956,27237.0,27236.0,0.02286286]
[1693444250115,2.55142956,27237.0,27236.0,0.006]
[1693444250322,1.00283956,27237.0,27236.0,0.006]
[1693444250518,1.02283956,27237.0,27236.0,0.02285369]
[1693444250891,1.75713456,27237.0,27236.0,0.02285369]
[1693444252855,0.0691669,27237.0,27236.0,1.49149769]
[1693444253953,0.0691669,27237.0,27236.0,0.75717569]
[1693444257231,0.0691669,27237.0,27236.0,1.49149769]
[1693444259263,0.0691669,27237.0,27236.0,2.22581969]
[1693444260257,0.0691669,27237.0,27236.0,1.49149769]
[1693444260834,0.0691669,27237.0,27236.0,0.75717569]
[1693444261779,0.0691669,27237.0,27236.0,0.02285369]
[1693444267383,2.95417035,27237.0,27236.0,0.02285369]
[1693444276035,2.95417035,27237.0,27236.0,0.02285369]
[1693444276596,0.75128535,27237.0,27236.0,0.75717569]
[1693444276805,0.0691669,27237.0,27236.0,2.22581969]
[1693444278833,0.0691669,27237.0,27236.0,1.49149769]
[1693444283081,0.0691669,27237.0,27236.0,2.22581969]
[1693444285123,0.0691669,27237.0,27236.0,1.49149769]
[1693444287030,0.0691669,27237.0,27236.0,0.75717569]
[1693444289169,0.0691669,27237.0,27236.0,1.49149769]
[1693444291055,0.0691669,27237.0,27236.0,2.22581969]
[1693444291257,0.0691669,27237.0,27236.0,2.96014169]
[1693444296545,0.0691669,27237.0,27236.0,2.22581969]
[1693444310444,0.0691669,27237.0,27236.0,1.49149769]
[1693444312420,2.91399654,27237.0,27236.0,0.02285369]
[1693444312615,2.98899654,27237.0,27236.0,0.02285369]
[1693444316753,3.07686089,27237.0,27236.0,0.02285369]
[1693444317751,2.26756589,27237.0,27236.0,0.02285369]
[1693444317962,2.17970154,27237.0,27236.0,0.02285369]
[1693444320667,1.44540654,27237.0,27236.0,0.02285369]
[1693444322143,0.71111154,27237.0,27236.0,0.02285369]
[1693444322950,0.71111154,27237.0,27236.0,0.02285369]
[1693444326770,0.71111154,27237.0,27236.0,0.75717569]
[1693444331241,0.71111154,27237.0,27236.0,1.49149769]
[1693444333735,0.0691669,27237.0,27236.0,2.22581969]
[1693444333875,0.0691669,27237.0,27236.0,2.96014169]
[1693444334087,0.0691669,27237.0,27236.0,0.02285369]
[1693444334291,0.0691669,27237.0,27236.0,2.96014169]
[1693444336910,0.0691669,27237.0,27236.0,2.22581969]
[1693444347012,0.38893177,27237.0,27236.0,1.49149769]